[Event "European Amateur-ch U2300 2019"]
[Site "Rhodes"]
[Date "2019.04.14"]
[Round "9.5"]
[White "Cmiel, Thorsten"]
[Black "Andreev, Stanislav"]
[Result "1/2-1/2"]
[ECO "B13"]
[WhiteElo "2109"]
[BlackElo "2140"]
[Annotator "NA"]
[PlyCount "69"]
[EventDate "2019.04.06"]
[EventType "swiss"]
[EventCountry "GRE"]
[SourceTitle "playchess.com"]
[Source "ChessBase"]
[SourceQuality "1"]
[TimeControl "40/5400+30:1800+30"]

1. e4 {[%emt 0:01:17]} c6 {[%emt 0:00:00]} 2. d4 {[%emt 0:00:03]} d5 {[%emt 0:00:00]} 3. exd5 {[%emt 0:01:52]} cxd5 {[%emt 0:00:00]} 4. Bd3 {[%emt 0:00:05]} Nc6 {[%emt 0:00:04]} 5. c3 {[%emt 0:00:07]} Qc7 {[%emt 0:00:11]} 6. Ne2 {[%emt 0:00:05]} Bg4 {[%emt 0:07:07]} 7. O-O {[%emt 0:02:33] B13: Caro-Kann: Exchange Variation and Panov-Botvinnik Attack} e6 {[%emt 0:01:29]} 8. Qe1 {[%emt 0:00:04]} Bd6 {[%emt 0:04:53]} (8... Bxe2 9. Qxe2 Nf6 10. Nd2 Bd6 11. g3 O-O 12. f4 a6 13. Nf3 b5 14. a3 Ne7 {½-½ (52) Le,Q (2715)-Nisipeanu,L (2661) Batumi 2018}) 9. f3 {[%emt 0:00:50]} Bh5 {[%emt 0:05:42]} 10. Qh4 {[%emt 0:00:24]} Bg6 {[%emt 0:02:50]} 11. Bxg6 {[%emt 0:00:02]} fxg6 {[%emt 0:00:06]} 12. Bf4 {[%emt 0:04:01]} Nf6 {[%emt 0:02:23]} 13. Nd2 {[%emt 0:04:17]} O-O {[%emt 0:03:32]} 14. Bxd6 {[%emt 0:06:35]} Qxd6 {[%emt 0:00:04] [#]} 15. Qg3 $146 {[%emt 0:00:08]} e5 {[%emt 0:06:11]} 16. dxe5 {[%emt 0:02:17]} Nxe5 {[%emt 0:00:26]} 17. Nd4 {[%emt 0:01:14]} Nh5 {[%emt 0:02:31]} 18. Qe1 {[%emt 0:04:32]} Rae8 {[%emt 0:04:51]} 19. Qb1 {[%emt 0:02:30]} Qf6 {[%emt 0:07:55]} 20. Qc2 {[%emt 0:09:56]} Qg5 {[%emt 0:03:04]} 21. Rae1 {[%emt 0:04:56]} Qh4 {[%emt 0:02:08]} 22. Qb3 {[%emt 0:08:35]} Nf4 {[%emt 0:18:42]} 23. g3 {[%emt 0:01:31]} Nh3+ {[%emt 0:06:58]} 24. Kg2 {[%emt 0:03:42]} Qh6 {[%emt 0:03:19]} 25. Qxd5+ {[%emt 0:01:00]} Kh8 {[%emt 0:00:11]} 26. Ne4 {[%emt 0:00:14]} Nd3 {[%emt 0:00:32]} 27. Qb5 {[%emt 0:06:17]} Nxe1+ {[%emt 0:06:34]} 28. Rxe1 {[%emt 0:00:01]} Nf2 {[%emt 0:02:50]} 29. Kxf2 {[%emt 0:02:33]} Qxh2+ {[%emt 0:00:10]} 30. Ke3 {[%emt 0:00:20]} Qxg3 {[%emt 0:02:06]} 31. Kd2 {[%emt 0:07:31]} Qf4+ {[%emt 0:02:13]} 32. Kc2 {[%emt 0:00:44]} b6 {[%emt 0:01:16]} 33. Re2 {[%emt 0:06:41]} Re5 {[%emt 0:00:36]} 34. Qd7 $16 {[%emt 0:00:29]} Rf7 {[%emt 0:02:38]} 35. Qd8+ {[%emt 0:00:23]} 1/2-1/2